[Event "Lidkoping Open 2019"]
[Site "Lidkoping"]
[Date "2019.08.25"]
[Round "7.2"]
[White "Bellon Lopez, Juan Manuel"]
[Black "Svensson, Bengt"]
[Result "1/2-1/2"]
[ECO "D02"]
[WhiteElo "2335"]
[BlackElo "2310"]
[Annotator "ChessBase"]
[PlyCount "48"]
[EventDate "2019.08.19"]
[EventType "swiss"]
[EventCountry "SWE"]
[SourceTitle "playchess.com"]
[Source "ChessBase"]
[SourceQuality "1"]
[TimeControl "2700+10"]

1. Nf3 {[%emt 0:00:00]} c5 {[%emt 0:00:07]} 2. e3 {[%emt 0:00:15]} Nc6 {[%emt 0:00:50]} 3. d4 {[%emt 0:00:49]} d5 {[%emt 0:00:47]} 4. b3 {[%emt 0:03:29]} Bg4 {[%emt 0:01:45]} 5. Bb2 {[%emt 0:00:25]} Nf6 {[%emt 0:00:45]} 6. h3 {[%emt 0:00:39]} Bxf3 {[%emt 0:01:34]} 7. Qxf3 {[%emt 0:00:11]} e6 {[%emt 0:00:06]} 8. Nd2 {[%emt 0:00:29]} cxd4 {[%emt 0:01:55]} 9. exd4 {[%emt 0:00:06]} Qa5 {[%emt 0:00:31]} 10. a3 {[%emt 0:04:06]} Ne4 {[%emt 0:01:47]} 11. Qd3 {[%emt 0:01:01]} Nxd2 {[%emt 0:00:53]} 12. Qxd2 {[%emt 0:01:22]} Qb6 {[%emt 0:00:54]} 13. Be2 {[%emt 0:00:40]} Be7 {[%emt 0:00:31]} 14. O-O {[%emt 0:00:13]} O-O {[%emt 0:00:13]} 15. Rfd1 {[%emt 0:00:21]} Rac8 {[%emt 0:01:01]} 16. a4 {[%emt 0:01:06]} a6 {[%emt 0:02:12]} 17. a5 {[%emt 0:04:27]} Qc7 {[%emt 0:00:22]} 18. Ra4 {[%emt 0:00:02]} Rfd8 {[%emt 0:02:55]} 19. g3 {[%emt 0:01:56]} Bf6 {[%emt 0:00:53]} 20. Ba3 {[%emt 0:00:46]} Be7 {[%emt 0:01:29]} 21. Bb2 {[%emt 0:01:09]} Bf6 {[%emt 0:00:13]} 22. Ba3 {[%emt 0:01:16]} Be7 {[%emt 0:00:07]} 23. Bb2 {[%emt 0:24:02]} Bf6 {[%emt 0:27:00]} 24. f4 Ne7 {[%emt 0:00:10]} 1/2-1/2

[Event "Lidkoping Open 2019"]
[Site "Lidkoping"]
[Date "2019.08.25"]
[Round "7.3"]
[White "Mardell, Jonas"]
[Black "Blomqvist, Erik"]
[Result "0-1"]
[ECO "B22"]
[WhiteElo "2059"]
[BlackElo "2507"]
[Annotator "ChessBase"]
[PlyCount "92"]
[EventDate "2019.08.19"]
[EventType "swiss"]
[EventCountry "SWE"]
[SourceTitle "playchess.com"]
[Source "ChessBase"]
[SourceQuality "1"]
[TimeControl "2700+10"]

1. e4 {[%emt 0:00:00]} c5 {[%emt 0:00:53]} 2. c3 {[%emt 0:00:00]} Nf6 {[%emt 0:00:16]} 3. e5 {[%emt 0:00:00]} Nd5 {[%emt 0:00:02]} 4. d4 {[%emt 0:00:03]} cxd4 {[%emt 0:00:25]} 5. Qxd4 {[%emt 0:00:05]} e6 {[%emt 0:00:23]} 6. Bc4 {[%emt 0:00:59]} Nc6 {[%emt 0:03:36]} 7. Qe4 {[%emt 0:00:09]} d6 {[%emt 0:00:48]} 8. Nf3 {[%emt 0:01:37]} dxe5 {[%emt 0:02:15]} 9. Nxe5 {[%emt 0:00:18]} Nf6 {[%emt 0:00:52]} 10. Nxc6 {[%emt 0:01:48]} Nxe4 {[%emt 0:00:06]} 11. Nxd8 {[%emt 0:00:03]} Kxd8 {[%emt 0:00:02]} 12. Be3 {[%emt 0:06:16]} Bc5 {[%emt 0:01:46]} 13. Bxc5 {[%emt 0:02:41]} Nxc5 {[%emt 0:00:02]} 14. Nd2 {[%emt 0:02:09]} Bd7 {[%emt 0:00:07]} 15. Nf3 {[%emt 0:02:09]} Ke7 {[%emt 0:02:46]} 16. O-O {[%emt 0:02:14]} Rhc8 {[%emt 0:00:34]} 17. Ne5 {[%emt 0:03:34]} Be8 {[%emt 0:00:03]} 18. Bb3 {[%emt 0:03:28]} f6 {[%emt 0:07:21]} 19. Ng4 {[%emt 0:03:33]} Bg6 {[%emt 0:02:12]} 20. Rfe1 {[%emt 0:01:25]} b5 {[%emt 0:00:53]} 21. Rad1 {[%emt 0:03:02]} Nxb3 {[%emt 0:01:23]} 22. axb3 {[%emt 0:00:02]} Bc2 {[%emt 0:00:05]} 23. Rd5 {[%emt 0:00:02]} b4 {[%emt 0:02:51]} 24. Rb5 {[%emt 0:05:53]} bxc3 {[%emt 0:02:07]} 25. bxc3 {[%emt 0:00:02]} Rxc3 {[%emt 0:00:10]} 26. Rb7+ {[%emt 0:00:24]} Kf8 {[%emt 0:03:06]} 27. b4 {[%emt 0:05:05]} Bb3 {[%emt 0:02:27]} 28. h3 {[%emt 0:00:45]} Bd5 {[%emt 0:03:22]} 29. Rd7 {[%emt 0:00:04]} Rb3 {[%emt 0:01:06]} 30. Ne3 {[%emt 0:00:48]} Bc6 {[%emt 0:00:17]} 31. Rc7 {[%emt 0:00:14]} Bb5 {[%emt 0:02:08]} 32. Nc2 {[%emt 0:00:47]} e5 {[%emt 0:00:02]} 33. Ne3 {[%emt 0:00:19]} Bd3 {[%emt 0:02:34]} 34. Nd5 {[%emt 0:00:25]} Rd8 {[%emt 0:01:58]} 35. Ne7 {[%emt 0:00:13]} a6 {[%emt 0:00:35]} 36. Nc6 {[%emt 0:00:05]} Re8 {[%emt 0:01:02]} 37. Kh2 {[%emt 0:00:09]} h5 {[%emt 0:00:11]} 38. Ra1 {[%emt 0:00:06]} Rc3 {[%emt 0:00:06]} 39. Rd7 {[%emt 0:00:14]} Bb5 {[%emt 0:00:03]} 40. Rc7 {[%emt 0:00:18]} Rxc6 {[%emt 0:00:02]} 41. Rxc6 {[%emt 0:00:00]} Bxc6 {[%emt 0:00:02]} 42. Rxa6 {[%emt 0:00:01]} Bd5 {[%emt 0:00:15]} 43. Ra5 {[%emt 0:00:10]} Bc4 {[%emt 0:00:12]} 44. Rc5 {[%emt 0:00:02]} Bd3 {[%emt 0:00:01]} 45. f3 {[%emt 0:00:08]} Rb8 {[%emt 0:00:03]} 46. Rd5 {[%emt 0:00:02]} Bc4 {[%emt 0:00:05]} 0-1

[Event "Lidkoping Open 2019"]
[Site "Lidkoping"]
[Date "2019.08.25"]
[Round "7.4"]
[White "Andersson, Fredrik"]
[Black "Johnson, Daniel"]
[Result "1/2-1/2"]
[ECO "B43"]
[WhiteElo "2264"]
[BlackElo "2201"]
[Annotator "NA"]
[PlyCount "78"]
[EventDate "2019.08.19"]
[EventType "swiss"]
[EventCountry "SWE"]
[SourceTitle "playchess.com"]
[Source "ChessBase"]
[SourceQuality "1"]
[TimeControl "2700+10"]

1. e4 {[%emt 0:00:00]} c5 {[%emt 0:00:16]} 2. Nc3 {[%emt 0:00:00]} e6 {[%emt 0:00:04]} 3. Nf3 {[%emt 0:00:21]} a6 {[%emt 0:00:21]} 4. d4 {[%emt 0:00:06]} cxd4 {[%emt 0:00:05]} 5. Nxd4 {[%emt 0:00:02]} Qc7 {[%emt 0:00:01]} 6. Bd3 {[%emt 0:00:15]} Nc6 {[%emt 0:01:30]} 7. Nxc6 {[%emt 0:00:57]} dxc6 {[%emt 0:01:13]} 8. O-O {[%emt 0:00:32]} e5 {[%emt 0:00:35]} 9. f4 {[%emt 0:04:40]} Bc5+ {[%emt 0:06:24]} 10. Kh1 {[%emt 0:00:19]} b5 {[%emt 0:03:51]} 11. fxe5 {[%emt 0:03:15]} Ne7 {[%emt 0:00:43]} 12. Qh5 {[%emt 0:08:22]} Be6 {[%emt 0:01:09]} 13. a4 {[%emt 0:01:39]} O-O {[%emt 0:01:54]} 14. Ne2 {[%emt 0:02:31]} Ng6 {[%emt 0:02:10]} 15. Bf4 {[%emt 0:02:07]} Rab8 {[%emt 0:06:58]} 16. axb5 {[%emt 0:02:07]} axb5 {[%emt 0:00:12]} 17. Bg3 {[%emt 0:00:15]} Ra8 {[%emt 0:02:42]} 18. Nf4 {[%emt 0:01:33]} Nxf4 {[%emt 0:00:44]} 19. Bxf4 {[%emt 0:00:03]} Qb7 {[%emt 0:02:45]} 20. h3 {[%emt 0:00:53]} Rxa1 {[%emt 0:00:43]} 21. Rxa1 {[%emt 0:00:01]} Ra8 {[%emt 0:00:01]} 22. Qd1 {[%emt 0:00:06]} Qc8 {[%emt 0:02:26]} 23. Be2 {[%emt 0:02:21]} h6 {[%emt 0:01:37]} 24. Kh2 {[%emt 0:00:07]} Rb8 {[%emt 0:03:39]} 25. Bg3 {[%emt 0:01:27]} Qc7 {[%emt 0:01:06]} 26. Bg4 {[%emt 0:02:01]} Rd8 {[%emt 0:03:59]} 27. Qf3 {[%emt 0:00:20]} Qc8 {[%emt 0:00:19]} 28. Bxe6 {[%emt 0:03:05]} Qxe6 {[%emt 0:00:02]} 29. Rd1 {[%emt 0:00:05]} Rxd1 {[%emt 0:01:50]} 30. Qxd1 {[%emt 0:00:01]} Qc4 {[%emt 0:00:01]} 31. Qd3 {[%emt 0:01:53]} Qxd3 {[%emt 0:00:09]} 32. cxd3 {[%emt 0:00:05]} Bd4 {[%emt 0:00:01]} 33. b3 {[%emt 0:00:03]} Kf8 {[%emt 0:00:03]} 34. Bf4 {[%emt 0:01:18]} Ke7 {[%emt 0:00:06]} 35. Kg3 {[%emt 0:00:06]} Ke6 {[%emt 0:00:21]} 36. Kf3 {[%emt 0:00:04]} Bxe5 {[%emt 0:00:31]} 37. Be3 {[%emt 0:00:32]} h5 {[%emt 0:00:19]} 38. g4 {[%emt 0:00:47]} hxg4+ {[%emt 0:00:06]} 39. hxg4 {[%emt 0:00:01]} g6 {[%emt 0:00:17]} 1/2-1/2

[Event "Lidkoping Open 2019"]
[Site "Lidkoping"]
[Date "2019.08.25"]
[Round "7.5"]
[White "Friberg, Hans"]
[Black "Carlstrom, Niklas"]
[Result "1/2-1/2"]
[ECO "A55"]
[WhiteElo "2129"]
[BlackElo "2095"]
[Annotator "ChessBase"]
[PlyCount "32"]
[EventDate "2019.08.19"]
[EventType "swiss"]
[EventCountry "SWE"]
[SourceTitle "playchess.com"]
[Source "ChessBase"]
[SourceQuality "1"]
[TimeControl "2700+10"]

1. Nf3 {[%emt 0:00:00]} d6 {[%emt 0:00:05]} 2. d4 {[%emt 0:00:00]} Nf6 {[%emt 0:00:11]} 3. c4 {[%emt 0:00:12]} Nbd7 {[%emt 0:00:20]} 4. Nc3 {[%emt 0:00:33]} e5 {[%emt 0:00:12]} 5. g3 {[%emt 0:00:36]} Be7 {[%emt 0:00:18]} 6. Bg2 {[%emt 0:00:04]} O-O {[%emt 0:00:07]} 7. O-O {[%emt 0:00:37]} c6 {[%emt 0:00:49]} 8. e4 {[%emt 0:03:01]} Qc7 {[%emt 0:01:08]} 9. b3 {[%emt 0:00:14]} Re8 {[%emt 0:01:35]} 10. Bb2 {[%emt 0:01:42]} a6 {[%emt 0:01:35]} 11. Rc1 {[%emt 0:00:11]} Bf8 {[%emt 0:00:26]} 12. Re1 {[%emt 0:02:44]} b6 {[%emt 0:01:05]} 13. d5 {[%emt 0:00:56]} c5 {[%emt 0:02:41]} 14. Bh3 {[%emt 0:02:15]} Rb8 {[%emt 0:03:10]} 15. a4 {[%emt 0:00:09]} g6 {[%emt 0:00:20]} 16. Qd2 {[%emt 0:03:02]} Bg7 {[%emt 0:05:13]} 1/2-1/2

[Event "Lidkoping Open 2019"]
[Site "Lidkoping"]
[Date "2019.08.25"]
[Round "7.6"]
[White "Olsson, Bo"]
[Black "Winsnes, Rikard"]
[Result "1/2-1/2"]
[ECO "A34"]
[WhiteElo "1984"]
[BlackElo "2375"]
[Annotator "ChessBase"]
[PlyCount "79"]
[EventDate "2019.08.19"]
[EventType "swiss"]
[EventCountry "SWE"]
[SourceTitle "playchess.com"]
[Source "ChessBase"]
[SourceQuality "1"]
[TimeControl "2700+10"]

1. Nf3 {[%emt 0:00:00]} Nf6 {[%emt 0:00:32]} 2. c4 {[%emt 0:00:00]} c5 {[%emt 0:00:11]} 3. Nc3 {[%emt 0:00:12]} d5 {[%emt 0:00:23]} 4. cxd5 {[%emt 0:00:33]} Nxd5 {[%emt 0:00:06]} 5. e3 {[%emt 0:01:28]} Nc6 {[%emt 0:01:00]} 6. Bb5 {[%emt 0:04:18]} Nxc3 {[%emt 0:01:25]} 7. bxc3 {[%emt 0:00:29]} Bd7 {[%emt 0:01:02]} 8. O-O {[%emt 0:00:36]} a6 {[%emt 0:04:39]} 9. Be2 {[%emt 0:03:05]} e6 {[%emt 0:05:17]} 10. d4 {[%emt 0:00:15]} Be7 {[%emt 0:00:20]} 11. Ba3 {[%emt 0:01:19]} cxd4 {[%emt 0:01:44]} 12. Bxe7 {[%emt 0:00:09]} Qxe7 {[%emt 0:00:04]} 13. cxd4 {[%emt 0:01:07]} O-O {[%emt 0:00:22]} 14. Qd2 {[%emt 0:03:44]} Rfd8 {[%emt 0:02:16]} 15. Rfd1 {[%emt 0:05:18]} Be8 {[%emt 0:01:19]} 16. Qb2 {[%emt 0:01:33]} b5 {[%emt 0:07:18]} 17. Rac1 {[%emt 0:03:31]} b4 {[%emt 0:09:27]} 18. e4 {[%emt 0:03:20]} a5 {[%emt 0:01:11]} 19. Bb5 {[%emt 0:06:32]} Ne5 {[%emt 0:00:33]} 20. Nxe5 {[%emt 0:01:50]} Bxb5 {[%emt 0:00:02]} 21. Nc6 {[%emt 0:00:15]} Bxc6 {[%emt 0:01:06]} 22. Rxc6 {[%emt 0:00:02]} Qd7 {[%emt 0:00:10]} 23. Rc4 {[%emt 0:01:27]} Rac8 {[%emt 0:00:38]} 24. Rxc8 {[%emt 0:00:56]} Rxc8 {[%emt 0:00:20]} 25. h3 {[%emt 0:01:34]} h6 {[%emt 0:00:06]} 26. d5 {[%emt 0:00:30]} exd5 {[%emt 0:00:23]} 27. exd5 {[%emt 0:00:08]} Qd6 {[%emt 0:00:21]} 28. Qd4 {[%emt 0:00:18]} Rc5 {[%emt 0:01:58]} 29. g3 {[%emt 0:00:18]} Rb5 {[%emt 0:00:36]} 30. Qe4 {[%emt 0:00:55]} Rb8 {[%emt 0:00:16]} 31. Rc1 {[%emt 0:00:16]} Rd8 {[%emt 0:00:15]} 32. Rd1 {[%emt 0:00:11]} a4 {[%emt 0:00:28]} 33. Rb1 {[%emt 0:00:41]} Rb8 {[%emt 0:00:14]} 34. Qc4 {[%emt 0:00:11]} g6 {[%emt 0:00:15]} 35. Kg2 {[%emt 0:00:20]} Kh7 {[%emt 0:00:16]} 36. Qc6 {[%emt 0:00:27]} Qxc6 37. dxc6 {[%emt 0:00:00]} b3 {[%emt 0:01:22]} 38. axb3 {[%emt 0:00:07]} axb3 {[%emt 0:00:01]} 39. c7 {[%emt 0:00:03]} Rc8 {[%emt 0:00:01]} 40. Rxb3 {[%emt 0:00:02]} 1/2-1/2

[Event "Lidkoping Open 2019"]
[Site "Lidkoping"]
[Date "2019.08.25"]
[Round "7.7"]
[White "Ronneland, Daniel"]
[Black "Nordlund, Jim"]
[Result "1-0"]
[ECO "A55"]
[WhiteElo "2137"]
[BlackElo "2130"]
[Annotator "NA"]
[PlyCount "64"]
[EventDate "2019.08.19"]
[EventType "swiss"]
[EventCountry "SWE"]
[SourceTitle "playchess.com"]
[Source "ChessBase"]
[SourceQuality "1"]
[TimeControl "2700+10"]

1. d4 {[%emt 0:00:00]} d6 {[%emt 0:00:00]} 2. Nf3 {[%emt 0:01:27]} Nf6 {[%emt 0:01:08]} 3. c4 {[%emt 0:01:02]} Nbd7 {[%emt 0:00:12]} 4. Nc3 {[%emt 0:00:16]} e5 {[%emt 0:00:10]} 5. e4 {[%emt 0:00:48]} Be7 {[%emt 0:00:28]} 6. Be2 {[%emt 0:01:47]} O-O {[%emt 0:03:01]} 7. O-O {[%emt 0:00:09]} c6 {[%emt 0:00:10]} 8. h3 {[%emt 0:00:41]} a6 {[%emt 0:00:36]} 9. a4 {[%emt 0:01:54]} a5 {[%emt 0:00:32]} 10. Be3 {[%emt 0:00:50]} Re8 {[%emt 0:00:21]} 11. Qc2 {[%emt 0:03:18]} Qc7 {[%emt 0:00:38]} 12. d5 {[%emt 0:00:55]} b6 {[%emt 0:03:08]} 13. dxc6 {[%emt 0:03:48]} Qxc6 {[%emt 0:00:05]} 14. Nd5 {[%emt 0:00:27]} Bb7 {[%emt 0:00:43]} 15. Rfc1 {[%emt 0:08:14]} Nc5 {[%emt 0:01:17]} 16. Bxc5 {[%emt 0:01:03]} bxc5 {[%emt 0:01:22]} 17. Nh2 {[%emt 0:03:15]} Rab8 {[%emt 0:02:49]} 18. Ra3 {[%emt 0:00:23]} Ba6 {[%emt 0:00:53]} 19. Rg3 {[%emt 0:00:46]} Qb7 {[%emt 0:02:06]} 20. b3 {[%emt 0:00:33]} Nxd5 {[%emt 0:01:57]} 21. exd5 {[%emt 0:00:18]} Qb4 {[%emt 0:00:36]} 22. Ng4 {[%emt 0:01:47]} Kh8 {[%emt 0:02:44]} 23. h4 {[%emt 0:05:45]} Bc8 {[%emt 0:00:27]} 24. h5 {[%emt 0:01:21]} f5 {[%emt 0:00:27]} 25. Nh2 {[%emt 0:00:28]} Bf6 {[%emt 0:01:00]} 26. Rh3 {[%emt 0:01:00]} Bd7 {[%emt 0:00:47]} 27. g4 {[%emt 0:02:40]} e4 {[%emt 0:01:16]} 28. gxf5 {[%emt 0:00:10]} Bxf5 {[%emt 0:00:04]} 29. Bg4 {[%emt 0:00:02]} Bxg4 {[%emt 0:00:58]} 30. Nxg4 {[%emt 0:00:02]} Bd4 {[%emt 0:00:13]} 31. Kf1 {[%emt 0:00:52]} Rb7 {[%emt 0:01:13]} 32. Re1 {[%emt 0:00:04]} Rbe7 {[%emt 0:00:16]} 1-0

[Event "Lidkoping Open 2019"]
[Site "Lidkoping"]
[Date "2019.08.25"]
[Round "7.8"]
[White "Mattsson, Michael"]
[Black "Blomstrom, Lars"]
[Result "1-0"]
[ECO "C54"]
[WhiteElo "2011"]
[BlackElo "2132"]
[Annotator "NA"]
[PlyCount "67"]
[EventDate "2019.08.19"]
[EventType "swiss"]
[EventCountry "SWE"]
[SourceTitle "playchess.com"]
[Source "ChessBase"]
[SourceQuality "1"]
[TimeControl "2700+10"]

1. e4 {[%emt 0:02:13]} e5 {[%emt 0:00:00]} 2. Nf3 {[%emt 0:00:04]} Nc6 {[%emt 0:00:04]} 3. Bc4 {[%emt 0:01:21]} Bc5 {[%emt 0:00:04]} 4. O-O {[%emt 0:00:46]} Nf6 {[%emt 0:00:44]} 5. c3 {[%emt 0:00:44]} Nxe4 {[%emt 0:04:47]} 6. d4 {[%emt 0:00:04]} Bb6 {[%emt 0:00:24]} 7. d5 {[%emt 0:02:29]} Nd6 {[%emt 0:02:50]} 8. dxc6 {[%emt 0:06:43]} Nxc4 {[%emt 0:03:47]} 9. Qd5 {[%emt 0:00:02]} Nd6 {[%emt 0:00:59]} 10. Qxe5+ {[%emt 0:05:07]} Kf8 {[%emt 0:00:10]} 11. a4 {[%emt 0:03:03]} a5 {[%emt 0:01:07]} 12. cxd7 {[%emt 0:03:18]} Bxd7 {[%emt 0:00:21]} 13. Be3 {[%emt 0:01:12]} Bxe3 {[%emt 0:01:55]} 14. Qxe3 {[%emt 0:02:11]} b6 {[%emt 0:04:19]} 15. Ne5 {[%emt 0:01:25]} f6 {[%emt 0:02:39]} 16. Nxd7+ {[%emt 0:01:14]} Qxd7 {[%emt 0:00:03]} 17. Qd4 {[%emt 0:01:16]} Qe6 {[%emt 0:10:30]} 18. Nd2 {[%emt 0:00:44]} Re8 {[%emt 0:00:19]} 19. b4 {[%emt 0:03:54]} Qe5 {[%emt 0:02:31]} 20. Nf3 {[%emt 0:00:25]} Qxd4 {[%emt 0:00:54]} 21. Nxd4 {[%emt 0:00:28]} Nc4 {[%emt 0:03:15]} 22. Rfd1 {[%emt 0:01:27]} Kf7 {[%emt 0:01:28]} 23. Nb5 {[%emt 0:00:22]} Re7 {[%emt 0:00:38]} 24. Rd4 {[%emt 0:00:29]} Rhe8 {[%emt 0:01:41]} 25. h3 {[%emt 0:00:02]} Ne5 {[%emt 0:00:03]} 26. f4 {[%emt 0:00:39]} Ng6 {[%emt 0:00:53]} 27. Rc4 {[%emt 0:00:28]} Re2 {[%emt 0:00:47]} 28. Rxc7+ {[%emt 0:00:56]} Kg8 {[%emt 0:00:01]} 29. Nd6 {[%emt 0:00:29]} R8e3 {[%emt 0:01:18]} 30. Nf5 {[%emt 0:00:13]} Rd3 {[%emt 0:00:16]} 31. Rc8+ {[%emt 0:01:16]} Kf7 {[%emt 0:00:22]} 32. Rc7+ {[%emt 0:00:01]} Kg8 {[%emt 0:00:09]} 33. Nd4 {[%emt 0:02:12]} Re4 {[%emt 0:00:29]} 34. f5 {[%emt 0:01:33]} 1-0

[Event "Lidkoping Open 2019"]
[Site "Lidkoping"]
[Date "2019.08.25"]
[Round "7.9"]
[White "Kleimark, Anders"]
[Black "Andersson, Kjell-Ake"]
[Result "1-0"]
[ECO "E11"]
[WhiteElo "2016"]
[BlackElo "1922"]
[Annotator "NA"]
[PlyCount "41"]
[EventDate "2019.08.19"]
[EventType "swiss"]
[EventCountry "SWE"]
[SourceTitle "playchess.com"]
[Source "ChessBase"]
[SourceQuality "1"]
[TimeControl "2700+10"]

1. d4 {[%emt 0:00:01]} Nf6 {[%emt 0:00:00]} 2. c4 {[%emt 0:00:15]} e6 {[%emt 0:00:35]} 3. g3 {[%emt 0:00:07]} Bb4+ {[%emt 0:00:05]} 4. Bd2 {[%emt 0:02:22]} Qe7 {[%emt 0:00:06]} 5. Nf3 {[%emt 0:00:40]} Nc6 {[%emt 0:00:47]} 6. Nc3 {[%emt 0:00:35]} O-O {[%emt 0:00:13]} 7. Bg2 {[%emt 0:00:28]} d6 {[%emt 0:00:25]} 8. d5 {[%emt 0:01:23]} Nb8 {[%emt 0:00:47]} 9. O-O {[%emt 0:02:15]} e5 {[%emt 0:01:05]} 10. Qc2 {[%emt 0:02:46]} a5 {[%emt 0:04:29]} 11. Nh4 {[%emt 0:02:19]} Na6 {[%emt 0:01:15]} 12. a3 {[%emt 0:01:54]} Bxc3 {[%emt 0:01:01]} 13. Bxc3 {[%emt 0:00:20]} b6 {[%emt 0:01:00]} 14. b4 {[%emt 0:01:04]} axb4 {[%emt 0:00:54]} 15. axb4 {[%emt 0:00:31]} Bb7 {[%emt 0:01:37]} 16. Nf5 {[%emt 0:01:13]} Qe8 {[%emt 0:00:31]} 17. f4 {[%emt 0:00:56]} Nd7 {[%emt 0:00:57]} 18. fxe5 {[%emt 0:05:49]} Nxe5 {[%emt 0:01:41]} 19. Qe4 {[%emt 0:05:46]} Rd8 {[%emt 0:03:49]} 20. Qh4 {[%emt 0:03:10]} Ng6 {[%emt 0:01:58]} 21. Qh6 {[%emt 0:02:04]} 1-0

[Event "Lidkoping Open 2019"]
[Site "Lidkoping"]
[Date "2019.08.25"]
[Round "7.10"]
[White "Madebrink, Lars"]
[Black "Magnussen, Pal"]
[Result "1-0"]
[ECO "B38"]
[WhiteElo "2147"]
[BlackElo "1983"]
[Annotator "NA"]
[PlyCount "129"]
[EventDate "2019.08.19"]
[EventType "swiss"]
[EventCountry "SWE"]
[SourceTitle "playchess.com"]
[Source "ChessBase"]
[SourceQuality "1"]
[TimeControl "2700+10"]

1. Nf3 {[%emt 0:00:00]} Nf6 {[%emt 0:00:01]} 2. c4 {[%emt 0:00:00]} c5 {[%emt 0:00:23]} 3. Nc3 {[%emt 0:00:00]} Nc6 {[%emt 0:00:24]} 4. d4 {[%emt 0:00:09]} cxd4 {[%emt 0:00:53]} 5. Nxd4 {[%emt 0:00:02]} g6 {[%emt 0:00:40]} 6. Nc2 {[%emt 0:00:06]} Bg7 {[%emt 0:00:17]} 7. e4 {[%emt 0:00:03]} d6 {[%emt 0:00:57]} 8. Be2 {[%emt 0:00:06]} O-O {[%emt 0:00:35]} 9. O-O {[%emt 0:00:07]} Bd7 {[%emt 0:01:38]} 10. Be3 {[%emt 0:03:33]} Ne5 {[%emt 0:03:38]} 11. f3 {[%emt 0:00:39]} a6 {[%emt 0:01:03]} 12. b3 {[%emt 0:01:51]} Rc8 {[%emt 0:01:24]} 13. Qd2 {[%emt 0:01:28]} Qc7 {[%emt 0:02:48]} 14. Nb4 {[%emt 0:02:46]} Nc6 {[%emt 0:01:52]} 15. Nbd5 {[%emt 0:00:35]} Nxd5 {[%emt 0:00:32]} 16. Nxd5 {[%emt 0:00:09]} Qb8 {[%emt 0:00:50]} 17. Rac1 {[%emt 0:01:04]} Be6 {[%emt 0:04:17]} 18. Nb6 {[%emt 0:00:38]} Rcd8 {[%emt 0:00:30]} 19. Rfd1 {[%emt 0:00:05]} f5 {[%emt 0:04:37]} 20. exf5 {[%emt 0:00:33]} Rxf5 {[%emt 0:02:08]} 21. Nd5 {[%emt 0:05:06]} Rf7 {[%emt 0:01:45]} 22. Kh1 {[%emt 0:00:18]} Ne5 {[%emt 0:01:26]} 23. Qa5 {[%emt 0:02:23]} Rc8 {[%emt 0:01:28]} 24. Bg5 {[%emt 0:01:06]} Nc6 {[%emt 0:00:41]} 25. Qd2 {[%emt 0:00:10]} Re8 {[%emt 0:04:03]} 26. Bf1 {[%emt 0:00:11]} Ne5 {[%emt 0:01:21]} 27. Re1 {[%emt 0:00:17]} Bf5 {[%emt 0:01:13]} 28. f4 {[%emt 0:02:53]} Nc6 {[%emt 0:00:28]} 29. h3 {[%emt 0:00:16]} h6 {[%emt 0:01:31]} 30. Bh4 {[%emt 0:00:02]} e5 {[%emt 0:00:36]} 31. Bg3 {[%emt 0:00:41]} Kh7 {[%emt 0:01:20]} 32. Rcd1 {[%emt 0:00:04]} Nd4 {[%emt 0:00:24]} 33. fxe5 {[%emt 0:03:34]} dxe5 {[%emt 0:00:01]} 34. Ne3 {[%emt 0:00:02]} Qc8 {[%emt 0:04:56]} 35. Nxf5 {[%emt 0:00:33]} Nxf5 {[%emt 0:00:00]} 36. Bf2 {[%emt 0:00:24]} e4 {[%emt 0:00:00]} 37. Qd5 {[%emt 0:01:05]} Rfe7 {[%emt 0:00:00]} 38. g4 {[%emt 0:00:57]} e3 {[%emt 0:00:00]} 39. gxf5 {[%emt 0:00:38]} exf2 {[%emt 0:00:00]} 40. fxg6+ {[%emt 0:00:03]} Kh8 {[%emt 0:00:00]} 41. Rxe7 {[%emt 0:00:14]} Rxe7 {[%emt 0:00:00]} 42. Qd8+ {[%emt 0:00:12]} Re8 {[%emt 0:00:00]} 43. Qxc8 {[%emt 0:00:02]} Rxc8 {[%emt 0:00:00]} 44. Kg2 {[%emt 0:00:05]} Be5 {[%emt 0:00:00]} 45. Rd7 {[%emt 0:00:29]} Rc7 {[%emt 0:00:00]} 46. Rd8+ {[%emt 0:00:05]} Kg7 {[%emt 0:00:00]} 47. Bd3 {[%emt 0:00:02]} Bf6 {[%emt 0:00:00]} 48. Rd5 {[%emt 0:00:09]} Bh4 {[%emt 0:00:00]} 49. c5 {[%emt 0:00:34]} Re7 {[%emt 0:00:00]} 50. b4 {[%emt 0:00:18]} Kf6 {[%emt 0:00:00]} 51. Rh5 {[%emt 0:00:36]} Bg5 {[%emt 0:00:00]} 52. h4 {[%emt 0:00:25]} Be3 {[%emt 0:00:00]} 53. Rd5 {[%emt 0:00:12]} Kg7 {[%emt 0:00:38]} 54. h5 {[%emt 0:00:05]} Kf6 {[%emt 0:00:01]} 55. a4 {[%emt 0:01:00]} Rc7 {[%emt 0:00:10]} 56. Rd6+ {[%emt 0:00:22]} Kg7 {[%emt 0:00:02]} 57. Kf3 {[%emt 0:00:13]} Re7 {[%emt 0:00:11]} 58. c6 {[%emt 0:00:24]} bxc6 {[%emt 0:02:58]} 59. Rxc6 {[%emt 0:00:10]} Bd2 {[%emt 0:00:00]} 60. Kxf2 {[%emt 0:00:40]} Bxb4 {[%emt 0:00:00]} 61. Bxa6 {[%emt 0:00:05]} Re5 {[%emt 0:00:00]} 62. Rc7+ {[%emt 0:00:12]} Be7 {[%emt 0:00:00]} 63. Be2 {[%emt 0:00:32]} Kg8 {[%emt 0:00:50]} 64. Kf3 {[%emt 0:01:06]} Bd6 {[%emt 0:00:00]} 65. Bc4+ {[%emt 0:00:19]} 1-0